fUST/lending_fUST_20250407
["ID","MTS","AMOUNT","RATE_DAILY","PERIOD"]
[357333294,1744007501713,-526.85,0.00042739,7]
[357333295,1744007501724,-500.0,0.00042739,7]
[357333296,1744007501733,-6861.13,0.00042739,7]
[357333297,1744007501744,-500.0,0.00042739,7]
[357333298,1744007501753,-7716.74,0.00042739,7]
[357333299,1744007501763,-2269.56,0.00042739,7]
[357333300,1744007501772,-4907.12,0.00042739,7]
[357333301,1744007501782,-504.85,0.00042739,7]
[357333302,1744007501791,-542.23,0.00042739,7]
[357333303,1744007501806,-2640.34,0.00042739,7]
[357333304,1744007501816,-2111.69,0.00042739,7]
[357333305,1744007501826,-500.0,0.00042739,7]
[357333306,1744007501836,-2900.21,0.00042739,7]
[357333307,1744007501845,-754.1,0.00042739,7]
[357333308,1744007501855,-582.6,0.00042739,7]
[357333309,1744007501866,-726.72,0.00042739,7]
[357333310,1744007501876,-904.26,0.00042739,7]
[357333311,1744007501886,-500.0,0.00042739,7]
[357333312,1744007501896,-564.13,0.00042739,7]
[357333313,1744007501906,-853.72,0.00042739,7]
[357333314,1744007501916,-17236.37,0.00042739,7]
[357333315,1744007501926,-1442.71,0.00042739,7]
[357333316,1744007501936,-520.98,0.00042739,7]
[357333317,1744007501945,-3459.37,0.00042739,7]
[357333318,1744007501955,-500.0,0.00042739,7]
[357333319,1744007501964,-1195.35,0.00042739,7]
[357333320,1744007501974,-285.47300894,0.00042739,7]
[357333321,1744007501984,-739.23,0.00042739,7]
[357333322,1744007501994,-931.74,0.00042739,7]
[357333323,1744007502003,-1037.89,0.00042739,7]
[357333324,1744007502013,-500.0,0.000428,63]
[357333325,1744007502023,-650.12081939,0.00042808,2]
[357333326,1744007502033,-211.49636895,0.00042822,120]
[357333327,1744007502045,-500.0,0.00042877,7]
[357333328,1744007502056,-769.06536078,0.00042877,7]
[357333329,1744007502066,-500.0,0.00042877,7]
[357333330,1744007502075,-500.0,0.000429,64]
[357333331,1744007502085,-600.0,0.00042914,2]
[357333332,1744007502094,-20652.67028062,0.00043,7]
[357333333,1744007502104,-20652.67028062,0.00043,7]
[357333334,1744007502113,-805.89567773,0.00043,7]
[357333335,1744007502123,-805.89567773,0.00043,7]
[357333336,1744007502132,-1187.6357356,0.00043,7]
[357333337,1744007502142,-1187.6357356,0.00043,7]
[357333338,1744007502152,-267.92396624,0.00043,30]
[357333339,1744007502162,-183.0,0.00043,30]
[357333340,1744007502172,-183.0,0.00043,60]
[357333341,1744007502181,-498.38285333,0.00043,7]
[357333342,1744007502191,-498.38285333,0.00043,7]
[357333343,1744007502200,-498.38285334,0.00043,7]
[357333344,1744007502210,-498.38285334,0.00043,7]
[357333345,1744007502220,-5163.16757015,0.00043,7]
[357333346,1744007502230,-5163.16757015,0.00043,7]
[357333347,1744007502239,-155.41448457,0.00043,7]
[357333348,1744007502249,-155.41448457,0.00043,7]
[357333349,1744007502259,-1226.81693403,0.00043,7]
[357333350,1744007502268,-1226.81693403,0.00043,7]
[357333351,1744007502278,-1017.97348766,0.00043,7]
[357333352,1744007502287,-1017.97348766,0.00043,7]
[357333353,1744007502299,-963.04993115,0.00043,7]
[357333354,1744007502309,-963.04993115,0.00043,7]
[357333355,1744007502319,-239.1698253,0.00043,120]
[357333356,1744007502329,-132676.37825158,0.00043,7]
[357333357,1744007502340,-132676.37825158,0.00043,7]
[357333358,1744007502350,-3244.79049191,0.00043,7]
[357333359,1744007502359,-3244.79049191,0.00043,7]
[357333360,1744007502370,-18626.07679379,0.00043,7]
[357333361,1744007502380,-18626.07679379,0.00043,7]
[357333362,1744007502390,-1017.97348766,0.00043,7]
[357333363,1744007502399,-1017.97348766,0.00043,7]
[357333364,1744007502409,-51466.88054217,0.00043,7]
[357333365,1744007502419,-51466.88054217,0.00043,7]
[357333366,1744007502429,-25774.7867585,0.00043,7]
[357333367,1744007502439,-25774.7867585,0.00043,7]
[357333368,1744007502450,-33578.23480602,0.00043,120]
[357333369,1744007502459,-6654.96539479,0.00043,7]
[357333370,1744007502469,-6654.96539479,0.00043,7]
[357333371,1744007502479,-500.0,0.00043013,7]
[357333372,1744007502488,-812.34,0.00043013,7]
[357333373,1744007502498,-500.0,0.00043013,7]
[357333374,1744007502508,-729.06,0.00043013,7]
[357333375,1744007502517,-624.96498968,0.00043013,7]
[357333376,1744007502527,-500.0,0.00043013,7]
[357333377,1744007502537,-736.69,0.00043013,7]
[357333378,1744007502553,-500.0,0.00043013,7]
[357333379,1744007502563,-500.0,0.00043013,7]
[357333380,1744007502682,-557.57055621,0.00043013,7]
[357333381,1744007502707,-500.0,0.00043013,7]
[357333382,1744007502719,-867.45,0.00043013,7]
[357333383,1744007502730,-500.0,0.00043013,7]
[357333384,1744007502741,-649.67323536,0.00043013,7]
[357333385,1744007502751,-500.0,0.00043013,7]
[357333386,1744007502761,-533.35,0.00043013,7]
[357333387,1744007502771,-906.27,0.00043013,7]
[357333388,1744007502781,-670.8,0.00043013,7]
[357333389,1744007502790,-517.39,0.00043013,7]
[357333390,1744007502804,-500.0,0.00043013,7]
[357333391,1744007502813,-534.6,0.00043013,7]
[357333392,1744007502823,-500.0,0.00043013,7]
[357333393,1744007502833,-1086.53,0.00043013,7]
[357333394,1744007502844,-576.65,0.00043013,7]
[357333395,1744007502854,-500.0,0.00043013,7]
[357333396,1744007502864,-500.0,0.00043013,7]
[357333397,1744007502874,-1107.37,0.00043013,7]
[357333398,1744007502884,-1447.2,0.00043013,7]
[357333399,1744007502894,-513.43,0.00043013,7]
[357333400,1744007502904,-566.61,0.00043013,7]
[357333401,1744007502914,-939.19,0.00043013,7]
[357333402,1744007502924,-1423.54,0.00043013,7]
[357333403,1744007502933,-2008.01,0.00043013,7]
[357333404,1744007502943,-1800.94,0.00043013,7]
[357333405,1744007502954,-901.74,0.00043013,7]
[357333406,1744007502964,-500.0,0.00043013,7]
[357333407,1744007502974,-749.66,0.00043013,7]
[357333408,1744007502983,-550.20791221,0.00043013,7]
[357333409,1744007502993,-500.0,0.00043013,7]
[357333410,1744007503002,-697.53,0.00043013,7]
[357333411,1744007503012,-402.05217431,0.00043013,7]
[357333412,1744007503022,-934.77,0.00043013,7]
[357333413,1744007503032,-500.0,0.00043013,7]
[357333414,1744007503041,-1984.09,0.00043013,7]
[357333415,1744007503056,-946.46,0.00043013,7]
[357333416,1744007503067,-935.62,0.00043013,7]
[357333417,1744007503076,-312.9476479,0.00043013,7]
[357333418,1744007503086,-515.1,0.00043013,7]
[357333419,1744007503096,-512.76,0.00043013,7]
[357333420,1744007503106,-690.44,0.00043013,7]
[357333421,1744007503116,-838.21,0.00043013,7]
[357333422,1744007503126,-847.87,0.00043013,7]
[357333423,1744007503136,-1589.02,0.00043013,7]
[357333424,1744007503146,-500.0,0.00043013,7]
[357333425,1744007503156,-500.0,0.00043013,7]
[357333426,1744007503167,-1158.58,0.00043013,7]
[357333427,1744007503176,-952.13,0.00043013,7]
[357333428,1744007503186,-573.45,0.00043013,7]
[357333429,1744007503196,-500.0,0.00043013,7]
[357333430,1744007503206,-1057.47,0.00043013,7]
[357333431,1744007503217,-500.0,0.00043013,7]
[357333432,1744007503227,-694.43,0.00043013,7]
[357333433,1744007503237,-571.11,0.00043013,7]
[357333434,1744007503246,-454.17364983,0.00043013,7]
[357333435,1744007503255,-528.03,0.00043013,7]
[357333436,1744007503265,-500.0,0.00043013,7]
[357333437,1744007503276,-613.99,0.00043013,7]
[357333438,1744007503286,-1665.49,0.00043013,7]
[357333439,1744007503300,-928.88,0.00043013,7]
[357333440,1744007503310,-772.18,0.00043013,7]
[357333441,1744007503319,-500.0,0.00043013,7]
[357333442,1744007503329,-500.0,0.00043013,7]
[357333443,1744007503338,-500.0,0.00043013,7]
[357333444,1744007503348,-500.0,0.00043013,7]
[357333445,1744007503358,-1501.09,0.00043013,2]
[357333446,1744007503368,-586.05,0.00043013,7]
[357333447,1744007503378,-722.91,0.00043013,7]
[357333448,1744007503388,-1033.34,0.00043013,7]
[357333449,1744007503398,-522.77,0.00043013,7]
[357333450,1744007503408,-500.0,0.00043013,7]
[357333451,1744007503418,-571.83,0.00043013,7]
[357333452,1744007503428,-523.84,0.00043013,7]
[357333453,1744007503437,-500.0,0.00043013,7]
[357333454,1744007503447,-500.0,0.00043013,7]
[357333455,1744007503456,-833.69,0.00043013,7]
[357333456,1744007503466,-2025.36,0.00043013,7]
[357333457,1744007503476,-1592.74,0.00043013,7]
[357333458,1744007503485,-603.67,0.00043013,7]
[357333459,1744007503494,-2054.09,0.00043013,7]
[357333460,1744007503504,-4027.87,0.00043013,7]
[357333461,1744007503514,-1703.64,0.00043013,7]
[357333462,1744007503524,-1206.14,0.00043013,7]
[357333463,1744007503534,-2750.5,0.00043013,7]
[357333464,1744007503544,-5383.4,0.00043013,7]
[357333465,1744007503559,-1044.92,0.00043013,7]
[357333466,1744007503569,-752.29,0.00043013,7]
[357333467,1744007503579,-556.96,0.00043013,7]
[357333468,1744007503589,-16324.2,0.00043013,7]
[357333469,1744007503598,-9467.87,0.00043013,7]
[357333470,1744007503608,-704.24,0.00043013,7]
[357333471,1744007503618,-5668.81,0.00043013,7]
[357333472,1744007503627,-2032.66,0.00043013,7]
[357333473,1744007503637,-7826.43,0.00043013,7]
[357333474,1744007503646,-627.1,0.00043013,7]
[357333475,1744007503656,-1951.0,0.00043013,7]
[357333476,1744007503667,-1564.82,0.00043013,7]
[357333477,1744007503682,-720.69,0.00043013,7]
[357333478,1744007503692,-603.99,0.00043013,7]
[357333479,1744007503701,-500.0,0.00043013,7]
[357333480,1744007503711,-1960.56,0.00043013,7]
[357333481,1744007503722,-1748.88,0.00043013,7]
[357333482,1744007503731,-2029.77,0.00043013,7]
[357333483,1744007503741,-1368.39,0.00043013,2]
[357333484,1744007503751,-588.58,0.00043013,7]
[357333485,1744007503760,-601.11,0.00043013,7]
[357333486,1744007503769,-1802.77,0.00043013,7]
[357333487,1744007503779,-638.37,0.00043013,7]
[357333488,1744007503789,-3642.09,0.00043013,7]
[357333489,1744007503802,-1347.37,0.00043013,7]
[357333490,1744007503811,-1391.95,0.00043013,7]
[357333491,1744007503821,-500.0,0.00043013,7]
[357333492,1744007503831,-2126.62,0.00043013,7]
[357333493,1744007503840,-796.84,0.00043013,7]
[357333494,1744007503850,-617.31,0.00043013,7]
[357333495,1744007503860,-5186.58,0.00043013,7]
[357333496,1744007503869,-1111.1,0.00043013,7]
[357333497,1744007503879,-1058.19,0.00043013,7]
[357333498,1744007503889,-7684.6,0.00043013,7]
[357333499,1744007503899,-781.69,0.00043013,7]
[357333500,1744007503909,-503.58,0.00043013,7]
[357333501,1744007503918,-358.41622287,0.00043013,7]
[357333502,1744007503927,-526.85,0.00043013,7]
[357333503,1744007503937,-514.16368819,0.00043013,7]
[357333504,1744007503946,-6861.13,0.00043013,7]
[357333505,1744007503955,-500.0,0.00043013,7]
[357333506,1744007503965,-7716.74,0.00043013,7]
[357333507,1744007503974,-2269.56,0.00043013,7]
[357333508,1744007503983,-4907.12,0.00043013,7]
[357333509,1744007503995,-504.85,0.00043013,7]
[357333510,1744007504005,-542.23,0.00043013,7]
[357333511,1744007504014,-2640.34,0.00043013,7]
[357333512,1744007504023,-2111.69,0.00043013,7]
[357333513,1744007504033,-500.0,0.00043013,7]
[357333514,1744007504043,-2900.21,0.00043013,7]
[357333515,1744007504056,-754.1,0.00043013,7]
[357333516,1744007504067,-582.6,0.00043013,7]
[357333517,1744007504076,-726.72,0.00043013,7]
[357333518,1744007504086,-904.26,0.00043013,7]
[357333519,1744007504096,-627.868703,0.00043013,7]
[357333520,1744007504106,-853.72,0.00043013,7]
[357333521,1744007504115,-564.13,0.00043013,7]
[357333522,1744007504125,-17236.37,0.00043013,7]
[357333523,1744007504134,-1442.71,0.00043013,7]
[357333524,1744007504143,-520.98,0.00043013,7]
[357333525,1744007504153,-3459.37,0.00043013,7]
[357333526,1744007504162,-500.0,0.00043013,7]
[357333527,1744007504172,-1195.35,0.00043013,7]
[357333528,1744007504181,-739.23,0.00043013,7]
[357333529,1744007504191,-931.74,0.00043013,7]
[357333530,1744007504201,-1037.89,0.00043013,7]
[357333531,1744007504211,-211.49636895,0.00043014,120]
[357333532,1744007504220,-1114.76,0.000432,2]
[357333533,1744007504230,-500.0,0.00043215,30]
[357333534,1744007504240,-500.0,0.00043287,7]
[357333535,1744007504249,-812.34,0.00043287,7]
[357333536,1744007504259,-500.0,0.00043287,7]
[357333537,1744007504269,-729.06,0.00043287,7]
[357333538,1744007504278,-500.0,0.00043287,7]
[357333539,1744007504288,-736.69,0.00043287,7]
[357333540,1744007504300,-500.0,0.00043287,7]
[357333541,1744007504310,-500.0,0.00043287,7]
[357333542,1744007504319,-500.0,0.00043287,7]
[357333543,1744007504330,-867.45,0.00043287,7]
[357333544,1744007504340,-500.0,0.00043287,7]
[357333545,1744007504350,-500.0,0.00043287,7]
[357333546,1744007504359,-533.35,0.00043287,7]
[357333547,1744007504370,-906.27,0.00043287,7]
[357333548,1744007504379,-670.8,0.00043287,7]
[357333549,1744007504388,-517.39,0.00043287,7]
[357333550,1744007504398,-500.0,0.00043287,7]
[357333551,1744007504407,-534.6,0.00043287,7]
[357333552,1744007504418,-525.7559913,0.00043287,7]
[357333553,1744007504427,-1086.53,0.00043287,7]
[357333554,1744007504541,-576.65,0.00043287,7]
[357333555,1744007504553,-500.0,0.00043287,7]
[357333556,1744007504563,-500.0,0.00043287,7]
[357333557,1744007504573,-1107.37,0.00043287,7]
[357333558,1744007504582,-1447.2,0.00043287,7]
[357333559,1744007504591,-513.43,0.00043287,7]
[357333560,1744007504601,-566.61,0.00043287,7]
[357333561,1744007504611,-939.19,0.00043287,7]
[357333562,1744007504620,-1423.54,0.00043287,7]
[357333563,1744007504629,-2008.01,0.00043287,7]
[357333564,1744007504639,-1800.94,0.00043287,7]
[357333565,1744007504648,-901.74,0.00043287,7]
[357333566,1744007504658,-497.82848556,0.00043287,7]
[357333567,1744007504668,-749.66,0.00043287,7]
[357333568,1744007504681,-500.0,0.00043287,7]
[357333569,1744007504690,-697.53,0.00043287,7]
[357333570,1744007504699,-934.77,0.00043287,7]
[357333571,1744007504710,-500.0,0.00043287,7]
[357333572,1744007504720,-1984.09,0.00043287,7]
[357333573,1744007504730,-946.46,0.00043287,7]
[357333574,1744007504739,-935.62,0.00043287,7]
[357333575,1744007504748,-515.1,0.00043287,7]
[357333576,1744007504758,-512.76,0.00043287,7]
[357333577,1744007504767,-690.44,0.00043287,7]
[357333578,1744007504777,-838.21,0.00043287,7]
[357333579,1744007504787,-847.87,0.00043287,7]
[357333580,1744007504796,-1589.02,0.00043287,7]
[357333581,1744007504808,-500.0,0.00043287,7]
[357333582,1744007504818,-500.0,0.00043287,7]
[357333583,1744007504827,-1158.58,0.00043287,7]
[357333584,1744007504837,-952.13,0.00043287,7]
[357333585,1744007504846,-573.45,0.00043287,7]
[357333586,1744007504855,-306.76890096,0.00043287,7]
[357333587,1744007504865,-1057.47,0.00043287,7]
[357333588,1744007504875,-500.0,0.00043287,7]
[357333589,1744007504884,-694.43,0.00043287,7]
[357333590,1744007504894,-571.11,0.00043287,7]
[357333591,1744007504904,-528.03,0.00043287,7]
[357333592,1744007504914,-500.0,0.00043287,7]
[357333593,1744007504923,-613.99,0.00043287,7]
[357333594,1744007504933,-1665.49,0.00043287,7]
[357333595,1744007504942,-928.88,0.00043287,7]
[357333596,1744007504952,-772.18,0.00043287,7]
[357333597,1744007504962,-500.0,0.00043287,7]
[357333598,1744007504971,-500.0,0.00043287,7]
[357333599,1744007504981,-500.0,0.00043287,7]
[357333600,1744007504991,-500.0,0.00043287,7]
[357333601,1744007505002,-1501.09,0.00043287,2]
[357333602,1744007505012,-586.05,0.00043287,7]
[357333603,1744007505022,-722.91,0.00043287,7]
[357333604,1744007505032,-1033.34,0.00043287,7]
[357333605,1744007505042,-522.77,0.00043287,7]
[357333606,1744007505057,-500.0,0.00043287,7]
[357333607,1744007505067,-571.83,0.00043287,7]
[357333608,1744007505077,-523.84,0.00043287,7]
[357333609,1744007505086,-500.0,0.00043287,7]
[357333610,1744007505095,-500.0,0.00043287,7]
[357333611,1744007505105,-833.69,0.00043287,7]
[357333612,1744007505114,-2025.36,0.00043287,7]
[357333613,1744007505124,-1592.74,0.00043287,7]
[357333614,1744007505133,-603.67,0.00043287,7]
[357333615,1744007505143,-2054.09,0.00043287,7]
[357333616,1744007505153,-4027.87,0.00043287,7]
[357333617,1744007505163,-1703.64,0.00043287,7]
[357333618,1744007505172,-1206.14,0.00043287,7]
[357333619,1744007505182,-2750.5,0.00043287,7]
[357333620,1744007505191,-5383.4,0.00043287,7]
[357333621,1744007505201,-1044.92,0.00043287,7]
[357333622,1744007505210,-752.29,0.00043287,7]
[357333623,1744007505220,-556.96,0.00043287,7]
[357333624,1744007505229,-16324.2,0.00043287,7]
[357333625,1744007505239,-9467.87,0.00043287,7]
[357333626,1744007505248,-704.24,0.00043287,7]
[357333627,1744007505257,-5668.81,0.00043287,7]
[357333628,1744007505266,-2032.66,0.00043287,7]
[357333629,1744007505275,-7826.43,0.00043287,7]
[357333630,1744007505285,-627.1,0.00043287,7]
[357333631,1744007505294,-1951.0,0.00043287,7]
[357333632,1744007505306,-1564.82,0.00043287,7]
[357333633,1744007505329,-720.69,0.00043287,7]
[357333634,1744007505347,-603.99,0.00043287,7]
[357333635,1744007505366,-500.0,0.00043287,7]
[357333636,1744007505386,-1960.56,0.00043287,7]
[357333637,1744007505406,-1748.88,0.00043287,7]
[357333638,1744007505423,-2029.77,0.00043287,7]
[357333639,1744007505441,-1368.39,0.00043287,2]
[357333640,1744007505455,-588.58,0.00043287,7]
[357333641,1744007505474,-601.11,0.00043287,7]
[357333642,1744007505493,-1802.77,0.00043287,7]
[357333643,1744007505510,-638.37,0.00043287,7]
[357333644,1744007505522,-3642.09,0.00043287,7]
[357333645,1744007505543,-1347.37,0.00043287,7]
[357333646,1744007505558,-1391.95,0.00043287,7]
[357333647,1744007505574,-500.0,0.00043287,7]
[357333648,1744007505589,-2126.62,0.00043287,7]
[357333649,1744007505603,-796.84,0.00043287,7]
[357333650,1744007505618,-617.31,0.00043287,7]
[357333651,1744007505632,-5186.58,0.00043287,7]
[357333652,1744007505646,-1111.1,0.00043287,7]
[357333653,1744007505663,-1058.19,0.00043287,7]
[357333654,1744007505678,-7684.6,0.00043287,7]
[357333655,1744007505693,-781.69,0.00043287,7]
[357333656,1744007505708,-503.58,0.00043287,7]
[357333657,1744007505724,-526.85,0.00043287,7]
[357333658,1744007505738,-6861.13,0.00043287,7]
[357333659,1744007505755,-500.0,0.00043287,7]
[357333660,1744007505770,-7716.74,0.00043287,7]
[357333661,1744007505785,-2269.56,0.00043287,7]
[357333662,1744007505800,-4907.12,0.00043287,7]
[357333663,1744007505815,-504.85,0.00043287,7]
[357333664,1744007505830,-542.23,0.00043287,7]
[357333665,1744007505845,-2640.34,0.00043287,7]
[357333666,1744007505860,-2111.69,0.00043287,7]
[357333667,1744007505874,-500.0,0.00043287,7]
[357333668,1744007505889,-2900.21,0.00043287,7]
[357333669,1744007505903,-754.1,0.00043287,7]
[357333670,1744007505918,-582.6,0.00043287,7]
[357333671,1744007505933,-726.72,0.00043287,7]
[357333672,1744007505947,-904.26,0.00043287,7]
[357333673,1744007505961,-853.72,0.00043287,7]
[357333674,1744007505975,-564.13,0.00043287,7]
[357333675,1744007505990,-17236.37,0.00043287,7]
[357333676,1744007506004,-1442.71,0.00043287,7]
[357333677,1744007506018,-520.98,0.00043287,7]
[357333678,1744007506032,-3459.37,0.00043287,7]
[357333679,1744007506048,-500.0,0.00043287,7]
[357333680,1744007506064,-1195.35,0.00043287,7]
[357333681,1744007506079,-739.23,0.00043287,7]
[357333682,1744007506094,-931.74,0.00043287,7]
[357333683,1744007506109,-1037.89,0.00043287,7]
[357333684,1744007506125,-500.0,0.00043288,7]
[357333685,1744007506140,-638.39455753,0.00043288,7]
[357333686,1744007506155,-600.0,0.00043356,2]
[357333687,1744007506170,-1208.75877963,0.00043452,17]
[357333688,1744007506184,-150.5,0.0004348,30]
[357333689,1744007506199,-150.5,0.0004349,30]
[357333690,1744007506214,-524.0,0.0004354,120]
[357333691,1744007506229,-524.0,0.0004355,120]
[357333692,1744007506244,-500.0,0.00043561,7]
[357333693,1744007506258,-812.34,0.00043561,7]
[357333694,1744007506273,-500.0,0.00043561,7]
[357333695,1744007506287,-729.06,0.00043561,7]
[357333696,1744007506302,-178.36100253,0.00043561,7]
[357333697,1744007506316,-736.69,0.00043561,7]
[357333698,1744007506332,-229.93553541,0.00043561,7]
[357333699,1744007506346,-546.1365948,0.00043561,7]
[357333700,1744007506361,-500.0,0.00043561,7]
[357333701,1744007506375,-867.45,0.00043561,7]
[357333702,1744007506390,-500.0,0.00043561,7]
[357333703,1744007506405,-500.0,0.00043561,7]
[357333704,1744007506420,-533.35,0.00043561,7]
[357333705,1744007506434,-906.27,0.00043561,7]
[357333706,1744007506449,-670.8,0.00043561,7]
[357333707,1744007506463,-517.39,0.00043561,7]
[357333708,1744007506478,-500.0,0.00043561,7]
[357333709,1744007506493,-534.6,0.00043561,7]
[357333710,1744007506508,-1086.53,0.00043561,7]
[357333711,1744007506522,-576.65,0.00043561,7]
[357333712,1744007506537,-500.0,0.00043561,7]
[357333713,1744007506554,-500.0,0.00043561,7]
[357333714,1744007506720,-1107.37,0.00043561,7]
[357333715,1744007506734,-1447.2,0.00043561,7]
[357333716,1744007506744,-513.43,0.00043561,7]
[357333717,1744007506754,-566.61,0.00043561,7]
[357333718,1744007506764,-939.19,0.00043561,7]
[357333719,1744007506774,-1423.54,0.00043561,7]
[357333720,1744007506784,-2008.01,0.00043561,7]
[357333721,1744007506794,-1800.94,0.00043561,7]
[357333722,1744007506807,-901.74,0.00043561,7]
[357333723,1744007506816,-749.66,0.00043561,7]
[357333724,1744007506826,-500.0,0.00043561,7]
[357333725,1744007506835,-697.53,0.00043561,7]
[357333726,1744007506848,-934.77,0.00043561,7]
[357333727,1744007506857,-500.0,0.00043561,7]
[357333728,1744007506867,-1984.09,0.00043561,7]
[357333729,1744007506877,-946.46,0.00043561,7]
[357333730,1744007506887,-935.62,0.00043561,7]
[357333731,1744007506897,-515.1,0.00043561,7]
[357333732,1744007506907,-512.76,0.00043561,7]
[357333733,1744007506917,-690.44,0.00043561,7]
[357333734,1744007506927,-838.21,0.00043561,7]
[357333735,1744007506937,-847.87,0.00043561,7]
[357333736,1744007506947,-1589.02,0.00043561,7]
[357333737,1744007506957,-500.0,0.00043561,7]
[357333738,1744007506966,-159.30790986,0.00043561,7]
[357333739,1744007506976,-1158.58,0.00043561,7]
[357333740,1744007506987,-952.13,0.00043561,7]
[357333741,1744007506997,-573.45,0.00043561,7]
[357333742,1744007507007,-1057.47,0.00043561,7]
[357333743,1744007507017,-500.0,0.00043561,7]
[357333744,1744007507027,-694.43,0.00043561,7]
[357333745,1744007507038,-571.11,0.00043561,7]
[357333746,1744007507047,-528.03,0.00043561,7]
[357333747,1744007507063,-177.86067954,0.00043561,7]
[357333748,1744007507073,-613.99,0.00043561,7]
[357333749,1744007507082,-1665.49,0.00043561,7]
[357333750,1744007507093,-928.88,0.00043561,7]
[357333751,1744007507102,-772.18,0.00043561,7]
[357333752,1744007507112,-500.0,0.00043561,7]
[357333753,1744007507122,-277.69373922,0.00043561,7]
[357333754,1744007507131,-500.0,0.00043561,7]
[357333755,1744007507140,-500.0,0.00043561,7]
[357333756,1744007507150,-1501.09,0.00043561,2]
[357333757,1744007507159,-586.05,0.00043561,7]
[357333758,1744007507169,-722.91,0.00043561,7]
[357333759,1744007507179,-1033.34,0.00043561,7]
[357333760,1744007507189,-522.77,0.00043561,7]
[357333761,1744007507198,-500.0,0.00043561,7]
[357333762,1744007507210,-571.83,0.00043561,7]
[357333763,1744007507220,-523.84,0.00043561,7]
[357333764,1744007507230,-500.0,0.00043561,7]
[357333765,1744007507240,-500.0,0.00043561,7]
[357333766,1744007507250,-833.69,0.00043561,7]
[357333767,1744007507260,-2025.36,0.00043561,7]
[357333768,1744007507269,-1592.74,0.00043561,7]
[357333769,1744007507278,-603.67,0.00043561,7]
[357333770,1744007507288,-2054.09,0.00043561,7]
[357333771,1744007507297,-4027.87,0.00043561,7]
[357333772,1744007507310,-1703.64,0.00043561,7]
[357333773,1744007507320,-1206.14,0.00043561,7]
[357333774,1744007507329,-2750.5,0.00043561,7]
[357333775,1744007507338,-5383.4,0.00043561,7]
[357333776,1744007507348,-1044.92,0.00043561,7]
[357333777,1744007507357,-752.29,0.00043561,7]
[357333778,1744007507367,-556.96,0.00043561,7]
[357333779,1744007507376,-16324.2,0.00043561,7]
[357333780,1744007507386,-9467.87,0.00043561,7]
[357333781,1744007507395,-704.24,0.00043561,7]
[357333782,1744007507404,-5668.81,0.00043561,7]
[357333783,1744007507414,-2032.66,0.00043561,7]
[357333784,1744007507422,-7826.43,0.00043561,7]
[357333785,1744007507432,-627.1,0.00043561,7]
[357333786,1744007507441,-1951.0,0.00043561,7]
[357333787,1744007507450,-1564.82,0.00043561,7]
[357333788,1744007507460,-720.69,0.00043561,7]
[357333789,1744007507470,-603.99,0.00043561,7]
[357333790,1744007507479,-500.0,0.00043561,7]
[357333791,1744007507488,-1960.56,0.00043561,7]
[357333792,1744007507498,-1748.88,0.00043561,7]
[357333793,1744007507508,-2029.77,0.00043561,7]